Cogmind - Beta 13 @@@ ROGUE MODE // 2024.04.15 @ 00:22:35 Player: Zaros426 Result: Destroyed by Y-54 Guardian with Gatling Laser Performance ------------- Evolutions (3) 1500 Regions Visited (5) 1000 Robots Destroyed (140) 700 Value Destroyed (3816) 3816 Prototype IDs (4) 80 Alien Tech Used (0) 0 Bonus (844) 844 TOTAL SCORE: 7940 Bonus ------- High Alert Combat Kills 844 Cogmind --------- Core Integrity 0/700 Matter 280/300 Energy 150/150 System Corruption 0% Temperature Cool (33) Movement Rolling (185) Ox7 Location -7/Lower Caves Parts ------- > --- POWER (1) -------- Micro Nuclear Core > --- PROPULSION (4) --- Wheel > --- UTILITY (6) ------ High-capacity Storage Unit Improved Terrain Scanner Advanced Terrain Scan Processor Improved Medium Armor Plating Improved Medium Armor Plating Improved Medium Armor Plating > --- WEAPON (2) ------- Gauss Cannon > --- INVENTORY (20) --- Light Deuterium Engine Flexi-carbon Leg Improved Cooling System Improved Cooling System Coolant Injector High-capacity Battery (250) Compact Battery (200) Energy Filter Kinecellerator Advanced ECM Suite Improved Medium Armor Plating Improved Medium Armor Plating Hacking Suite System Restoration Module Peak State ------------ > --- POWER ------------ Reinforced Deuterium Engine > --- PROPULSION ------- Armored Huge Wheel Armored Huge Wheel > --- UTILITY ---------- High-capacity Storage Unit Improved Terrain Scanner Advanced Terrain Scan Processor Improved Light Armor Plating Improved Light Armor Plating Improved Light Armor Plating > --- WEAPON ----------- Cooled Pulse Rifle Power Sword > --- INVENTORY -------- Light Deuterium Engine Improved Cooling System Improved Cooling System Coolant Injector High-capacity Battery Compact Battery Improved Sensor Array Improved Terrain Scanner Melee Analysis Suite Energy Filter Kinecellerator Improved Light Armor Plating Improved Shield Generator System Restoration Module Power Maul [Rating: 52] Favorites ----------- Power Light Deuterium Engine Engine Light Deuterium Engine Power Core Micro Nuclear Core Propulsion Wheel Leg Improved Titanium Leg Wheel Wheel Utility Improved Light Armor Plating Device Improved Terrain Scanner Storage High-capacity Storage Unit Processor Advanced Terrain Scan Processor Protection Improved Light Armor Plating Weapon Improved Grenade Launcher Energy Gun Cooled Pulse Rifle Energy Cannon Heavy Ion Cannon Ballistic Gun Assault Rifle Ballistic Cannon Gauss Cannon Launcher Improved Grenade Launcher Impact Weapon Power Maul Slashing Weapon Katana Special Melee Weapon Improved Datajack Build | -11 -10 -9 -8 -7 -7 ------- Run | Yrd Mat Mat Mat Fac Low Slots Evolved 6 | . . 2 2 2 . Power . | . . . . . . Propulsion 2 | . . . . 2 . Utility 4 | . . 2 2 . . Weapon . | . . . . . . Parts Attached 121 | 6 2 14 26 71 2 Power 11 | 1 . 2 1 7 . Engine 9 | 1 . 2 1 5 . Core 2 | . . . . 2 . Reactor . | . . . . . . Propulsion 29 | 2 2 3 5 17 . Treads . | . . . . . . Leg 15 | . . . 5 10 . Wheel 14 | 2 2 3 . 7 . Hover . | . . . . . . Flight . | . . . . . . Utility 59 | 2 . 3 16 36 2 Device 21 | 1 . . 4 15 1 Storage 10 | 1 . . 5 4 . Processor 6 | . . 2 2 2 . Hackware . | . . . . . . Protection 22 | . . 1 5 15 1 Artifact . | . . . . . . Weapon 22 | 1 . 6 4 11 . Energy Gun 2 | . . . . 2 . Energy Cannon 2 | . . . . 2 . Ballistic Gun 4 | 1 . 2 . 1 . Ballistic Cannon 2 | . . . . 2 . Launcher 4 | . . 2 2 . . Special Weapon . | . . . . . . Impact Weapon 2 | . . . . 2 . Slashing Weapon 5 | . . 1 2 2 . Piercing Weapon . | . . . . . . Special Melee Weapon 1 | . . 1 . . . Unidentified Prototypes 2 | . . . . 2 . Parts Lost 37 | . . 4 7 24 2 Power 5 | . . 1 . 4 . Propulsion 9 | . . 2 1 4 2 Utility 16 | . . 1 4 11 . Weapon 7 | . . . 2 5 . Highest Loss Streak 7 | . . 1 2 7 2 To Critical Strikes . | . . . . . . Average Slot Usage (%) 84 | . 85 93 95 80 83 Engine 5 | . 14 9 9 4 . Core 1 | . . . . . 7 Leg 9 | . . . 16 11 . Wheel 10 | . 28 18 . 8 22 Device 8 | . 14 11 8 7 8 Storage 10 | . 14 11 17 8 7 Processor 8 | . . 13 14 6 7 Protection 14 | . . 8 10 16 21 Energy Gun 1 | . . . . 2 . Ballistic Gun 1 | . 14 9 . . . Ballistic Cannon 1 | . . . . 1 7 Launcher 3 | . . 10 8 1 . Impact Weapon 1 | . . . . 1 . Slashing Weapon 2 | . . . 8 2 . Naked Turns . | . . . . . . Heaviest Build 77 | 13 13 28 60 77 75 Greatest Support 80 | 20 20 20 40 80 30 Greatest Overweight (x) 16 | . . 2 1 16 3 Average Overweight (x) 1 | . . . . 1 2 Largest Inventory Capacity 20 | 8 8 8 15 20 20 Average Capacity 15 | 5 8 8 9 18 20 Most Carried 15 | 5 8 8 11 15 14 Average Carried 9 | 3 6 6 8 10 13 Final Capacity 20 | 8 8 8 15 20 20 Final Carried 14 | 5 7 8 11 12 14 Class Distribution -------------------- 82% | Mutant 16% | Scavenger-Mutant Dominant Class ---------------- Mutant | -10/Materials Scavenger-Mutant | -9/Materials Mutant | -8/Materials Mutant | -7/Factory Mutant | -7/Lower Caves Resources | -11 -10 -9 -8 -7 -7 ----------- Run | Yrd Mat Mat Mat Fac Low Matter Collected 2781 | 264 142 368 603 1308 96 Remotely . | . . . . . . Salvage Created 3973 | 90 232 893 1220 1538 . Parts 242 | 11 16 59 77 79 . Haulers Intercepted 5 | . . 1 2 2 . Recyclers Shooed 11 | 1 2 2 1 5 . Parts Field Recycled . | . . . . . . Retrieved Matter . | . . . . . . Parts Self-Destructed . | . . . . . . Prevented . | . . . . . . Kills | -11 -10 -9 -8 -7 -7 ------- Run | Yrd Mat Mat Mat Fac Low Combat Hostiles Destroyed 76 | . 5 13 24 34 . Melee 26 | . . . 12 14 . Guns 13 | . 5 7 . 1 . Cannons 13 | . . . . 13 . AOE 21 | . . 6 12 3 . Classes Destroyed 15 | 1 4 5 2 3 . Worker 14 | . . 2 8 4 . Builder 17 | . . 5 5 7 . Tunneler 4 | 4 . . . . . Hauler 5 | . . 1 2 2 . Recycler 8 | . 1 4 2 1 . Mechanic 3 | . . . 1 2 . Watcher 13 | . 1 5 3 4 . Swarmer 20 | . 3 3 4 10 . Grunt 36 | . 2 7 14 13 . Brawler 8 | . . 1 4 3 . Sentry 2 | . . 2 . . . Demolisher 1 | . . . . 1 . Specialist 4 | . . . 2 2 . Hunter 1 | . . . . 1 . Programmer 4 | . . . . 4 . Best Kill Streak 11 | 3 5 11 11 10 . Combat Bots Only 7 | . 5 4 6 7 . Max Kills in Single Turn 3 | 1 1 3 3 2 . Gunslinging . | . . . . . . Exploded 3 | . . 1 3 1 . Melee 1 | . . . 1 1 . Uniques/NPCs Destroyed . | . . . . . . Combat | -11 -10 -9 -8 -7 -7 -------- Run | Yrd Mat Mat Mat Fac Low Hostile Shots Fired 602 | . 21 57 132 380 12 Missed 152 | . 5 16 36 92 3 Damage Taken 7024 | . 152 509 1405 4876 82 Core 1076 | . 82 96 187 699 12 Absorbed by Shields 288 | . . . . 288 . Ignored by Resistances 48 | . . . . 48 . Core Remaining (%) 77 | 100 67 76 66 . . Volleys Fired 284 | 12 30 86 18 131 7 Largest 2 | 1 1 2 2 1 1 Hottest 72 | 20 20 59 72 65 48 Shots Fired 288 | 12 30 87 20 131 8 Gun 125 | 12 30 72 . 11 . Cannon 117 | . . . . 109 8 Launcher 46 | . . 15 20 11 . Special . | . . . . . . Kinetic 212 | 12 30 72 . 90 8 Thermal 30 | . . . . 30 . Explosive 46 | . . 15 20 11 . Electromagnetic . | . . . . . . Robot Hit Streak 11 | 8 7 11 5 9 7 Robot Miss Streak 5 | 2 3 4 2 5 . Penetration Max 1 | . . . . 1 . Secondary Targets . | . . . . . . Shots Hit Robots 273 | 10 21 64 53 121 4 Core Hits 184 | 4 10 46 72 51 1 Critical Kills 3 | . 1 . . 2 . Critical Parts Destroyed 8 | . . 1 . 7 . Critical Strikes 28 | . 1 1 2 22 2 Destroy 2 | . 1 1 . . . Blast 13 | . . . . 11 2 Smash 9 | . . . . 9 . Sever 4 | . . . 2 2 . Melee Attacks 145 | . . 5 64 76 . Impact 51 | . . . . 51 . Slashing 89 | . . . 64 25 . Piercing . | . . . . . . Sneak Attacks 19 | . . 5 9 5 . Combat Hostiles . | . . . . . . Follow-up Attacks . | . . . . . . Damage Inflicted 11190 | 133 278 1806 3621 5267 85 Guns 1491 | 133 278 749 . 331 . Cannons 2138 | . . . . 2053 85 Explosions 3785 | . . 1057 1994 734 . Melee 3776 | . . . 1627 2149 . Ramming . | . . . . . . Kinetic 2975 | 133 278 749 . 1730 85 Thermal 1003 | . . 148 . 855 . Explosive 3404 | . . 909 1994 501 . Electromagnetic 32 | . . . . 32 . Impact 1606 | . . . . 1606 . Slashing 2170 | . . . 1627 543 . Piercing . | . . . . . . Highest Corruption 4 | . . . 3 4 2 Average Corruption 1 | . . . 2 1 1 Corruption Purged 12 | . . . 3 7 2 Corruption Blocked . | . . . . . . Effects 19 | . . . 5 12 2 Message Errors 3 | . . . . 2 1 Matter Fused 5 | . . . 1 4 . Heat Flow Errors 3 | . . . 2 1 . Energy Discharges 3 | . . . 1 2 . Parts Rejected 1 | . . . . 1 . Data Loss (minor) 3 | . . . 1 2 . Misfires 1 | . . . . . 1 Overload Shots 9 | . . . . 9 . Effects 2 | . . . . 2 . Energy Bleed 1 | . . . . 1 . Heat Surge 1 | . . . . 1 . Overflow Damage 946 | . . 35 88 823 . Projectiles 76 | . . . . 76 . Explosions 122 | . . 35 23 64 . Melee 748 | . . . 65 683 . Knockbacks 24 | . . . . 24 . Impact 3 | . . . . 3 . Kinetic 19 | . . . . 19 . Secondary 2 | . . . . 2 . Self-Inflicted Damage 138 | . . . 31 107 . Shots 3 | . . . 1 2 . Rammed . | . . . . . . Targets Rammed . | . . . . . . Kicked . | . . . . . . Crushed . | . . . . . . Highest Temperature 344 | . . 9 221 344 24 Average Temperature 70 | . . 3 36 83 10 Received Heat Transfer 1764 | . 48 195 441 1044 36 Effects 2 | . . . . 2 . Energy Bleed 1 | . . . . 1 . Interference 1 | . . . . 1 . Siege Activations . | . . . . . . Robots Corrupted . | . . . . . . Combat Hostiles . | . . . . . . Parts Fried 10 | . . . . 10 . Impact Corruptions 23 | . . . . 23 . Robots Melted . | . . . . . . Combat Hostiles . | . . . . . . Parts Melted 1 | . . . . 1 . Heat Transferred 1181 | . . 100 . 1081 . Parts Sabotaged . | . . . . . . Parts Stolen . | . . . . . . Parts Stripped . | . . . . . . Power Chain Reactions 1 | . . . . 1 . Alert | -11 -10 -9 -8 -7 -7 ------- Run | Yrd Mat Mat Mat Fac Low Peak Influence 1215 | 20 190 658 793 1215 . Initial 360 | . 13 79 189 360 . Average 576 | 4 132 349 452 706 . Maximum Alert Level 4 | . . 2 3 4 . Low Security (%) 11 | 100 100 32 5 . . Level 1 11 | . . 23 39 2 . Level 2 48 | . . 43 36 58 . Level 3 19 | . . . 18 25 . Level 4 7 | . . . . 12 . Level 5 . | . . . . . . High Security . | . . . . . . Max Security . | . . . . . . Squads Dispatched 23 | . 2 2 3 16 . Investigation 2 | . . . . 2 . Extermination 3 | . . . . 3 . Reinforcement 12 | . 2 2 3 5 . Assault 3 | . . . . 3 . Garrison 3 | . . . . 3 . Intercept . | . . . . . . Searches Triggered . | . . . . . . Construction Impeded 4 | . . 1 1 2 . Haulers Reinforced 2 | . . . . 2 . Active Scanning Responses . | . . . . . . Cargo Convoy Interrupts . | . . . . . . Stealth | -11 -10 -9 -8 -7 -7 --------- Run | Yrd Mat Mat Mat Fac Low Distress Signals 10 | . 1 4 4 1 . Communications Jammed . | . . . . . . Distress Signals . | . . . . . . Times Spotted 130 | . 9 20 32 66 3 Peak Tracking Total 8 | . 6 6 5 8 3 Tactical Retreats 5 | . . . 1 4 . Traps | -11 -10 -9 -8 -7 -7 ------- Run | Yrd Mat Mat Mat Fac Low Traps Triggered . | . . . . . . Indirectly . | . . . . . . Trap Hack Attempts . | . . . . . . Triggered . | . . . . . . Disarmed . | . . . . . . Reprogrammed . | . . . . . . Reused . | . . . . . . Traps Extracted . | . . . . . . Installed . | . . . . . . Triggered . | . . . . . . Machines | -11 -10 -9 -8 -7 -7 ---------- Run | Yrd Mat Mat Mat Fac Low Machines Disabled 32 | . . 3 2 27 . Max in Single Turn 5 | . . 2 1 5 . Machines Repaired . | . . . . . . Machines Dismantled . | . . . . . . Machines Sabotaged . | . . . . . . Overloaded Fab Kills . | . . . . . . Hacking | -11 -10 -9 -8 -7 -7 --------- Run | Yrd Mat Mat Mat Fac Low Machines Accessed 14 | . 2 . . 12 . Terminals 9 | . 2 . . 7 . Fabricators 2 | . . . . 2 . Repair Stations 1 | . . . . 1 . Recycling Units 2 | . . . . 2 . Scanalyzers . | . . . . . . Garrison Access . | . . . . . . Total Hacks 31 | . 5 . . 26 . Successful 13 | . 1 . . 12 . Failed 18 | . 4 . . 14 . Catastrophic 3 | . . . . 3 . Database Lockouts . | . . . . . . Manual . | . . . . . . Terminals 21 | . 5 . . 16 . Fabricators 3 | . . . . 3 . Repair Stations 1 | . . . . 1 . Recycling Units 6 | . . . . 6 . Scanalyzers . | . . . . . . Garrison Access . | . . . . . . Terminal Hacks 8 | . 1 . . 7 . Robot Analysis 3 | . 1 . . 2 . Prototype ID Bank 1 | . . . . 1 . Alert Level 1 | . . . . 1 . Hauler Manifests 1 | . . . . 1 . Registered Components 1 | . . . . 1 . Zone Layout 1 | . . . . 1 . Fabricator Hacks 2 | . . . . 2 . Network Status 1 | . . . . 1 . Build 1 | . . . . 1 . Repair Station Hacks 1 | . . . . 1 . Scan Component 1 | . . . . 1 . Recycling Unit Hacks 2 | . . . . 2 . Report Inventory 1 | . . . . 1 . Retrieve Components 1 | . . . . 1 . Scanalyzer . | . . . . . . Garrison Access Hacks . | . . . . . . Unauthorized Hacks . | . . . . . . Terminals . | . . . . . . Fabricators . | . . . . . . Repair Stations . | . . . . . . Recycling Units . | . . . . . . Scanalyzers . | . . . . . . Garrison Access . | . . . . . . Data Cores Recovered . | . . . . . . Used . | . . . . . . Hacking Detections 14 | . 2 . . 12 . Full Trace Events 2 | . . . . 2 . Feedback Events . | . . . . . . Feedback Blocked . | . . . . . . Robot Schematics Acquired . | . . . . . . Robots Built . | . . . . . . Authchips . | . . . . . . Time . | . . . . . . Total Robot Build Rating . | . . . . . . Part Schematics Acquired . | . . . . . . Parts Built 2 | . . . . 2 . Authchips . | . . . . . . Time 42 | . . . . 42 . Total Part Build Rating 8 | . . . . 8 . Parts Repaired . | . . . . . . Time . | . . . . . . Parts Recycled . | . . . . . . Recycled Matter . | . . . . . . Retrieved Matter . | . . . . . . Retrieved Components 9 | . . . . 9 . Parts Scanalyzed . | . . . . . . Part Schematics Acquired . | . . . . . . Parts Damaged . | . . . . . . Bothacking | -11 -10 -9 -8 -7 -7 ------------ Run | Yrd Mat Mat Mat Fac Low Used RIF Installer . | . . . . . . Robots Hacked 2 | . . 2 . . . Non-combat 2 | . . 2 . . . Combat . | . . . . . . Robot Hacks Applied 4 | . . 4 . . . parse_system 1 | . . 1 . . . no_distress 3 | . . 3 . . . Relay Couplers Released . | . . . . . . Fabnet Peak Effective % . | . . . . . . Robots Rewired . | . . . . . . Allies Hacked . | . . . . . . Hacks Repelled . | . . . . . . Allies | -11 -10 -9 -8 -7 -7 -------- Run | Yrd Mat Mat Mat Fac Low Total Allies . | . . . . . . Largest Group . | . . . . . . Highest-Rated Group . | . . . . . . Highest-Rated Ally . | . . . . . . Total Orders . | . . . . . . Ally Attacks . | . . . . . . Total Damage . | . . . . . . Kills . | . . . . . . Allies Corrupted . | . . . . . . Allies Melted . | . . . . . . Intel | -11 -10 -9 -8 -7 -7 ------- Run | Yrd Mat Mat Mat Fac Low Robot Analysis Total 3 | . 1 . . 2 . Derelict Logs Recovered 1 | . . . . . 1 Drone Launches . | . . . . . . Drone Recoveries . | . . . . . . Exploration | -11 -10 -9 -8 -7 -7 ------------- Run | Yrd Mat Mat Mat Fac Low Turns Passed 4534 | 90 199 438 746 2556 505 Spaces Moved 2577 | 57 157 199 330 1392 442 Core 13 | 1 . . . 12 . Treads . | . . . . . . Legs 726 | . . . 310 416 . Wheels 1838 | 56 157 199 20 964 442 Hover . | . . . . . . Flight . | . . . . . . Fastest Speed 50 | 50 80 80 95 105 110 Average Speed 117 | 79 80 91 141 123 110 Slowest Speed 850 | 80 80 110 200 850 125 Overloaded Moves . | . . . . . . Propulsion Burnouts . | . . . . . . Robots Hopped . | . . . . . . Cave-ins Triggered . | . . . . . . Exploration Rate (%) 30 | 5 34 29 34 37 46 Regions Visited 5 Branch Regions 1 Pre-discovered Areas . | . . . . . . Known Exits Taken 2 | . . 1 1 . . Unknown Exits Taken 3 | 1 1 . . 1 . Scrap Searched 2 | . . . . . 2 Spaces Dug 31 | . . 7 10 11 3 Terrain Destroyed 428 | . . 75 155 191 7 Melee 16 | . . . 10 6 . Projectile 50 | . . . . 43 7 AOE 362 | . . 75 145 142 . Terrain Rammed . | . . . . . . Walls Destroyed . | . . . . . . Machines Disabled . | . . . . . . Actions | -11 -10 -9 -8 -7 -7 --------- Run | Yrd Mat Mat Mat Fac Low Total 3556 | 88 202 371 494 1948 453 Wait 292 | 5 2 38 22 225 . Move 2572 | 56 156 198 329 1391 442 Hop . | . . . . . . Pick Up 82 | 9 7 16 18 30 2 Fast Attach 26 | 2 . 3 6 15 . Attach 42 | 4 . 5 8 25 . Detach 3 | . . . 1 2 . Swap 53 | . 2 6 12 31 2 Drop 57 | . 5 14 16 22 . Fire 284 | 12 30 86 18 131 7 Melee 145 | . . 5 64 76 . Ram . | . . . . . . Kick . | . . . . . . Crush . | . . . . . . Escape Stasis . | . . . . . . Rewire . | . . . . . . Trap . | . . . . . . Miscellaneous . | . . . . . . Route ------- -11/Scrapyard -10/Materials -9/Materials -8/Materials -7/Factory -7/Lower Caves History --------- Turn | Location | Event 8 | -11/Scrapyard | Discovered new exit (range 14) 91 | -11/Scrapyard | Entered Materials 245 | -10/Materials | Discovered new exit (range 15) 290 | -10/Materials | Entered another Materials area 290 | -9/Materials | Evolved 2 slots: Utility x2 586 | -9/Materials | Build established: Scavenger-Mutant 725 | -9/Materials | Discovered new exit (range 4) 727 | -9/Materials | Identified exit to Materials 728 | -9/Materials | Entered another Materials area 728 | -8/Materials | Evolved 2 slots: Utility x2 1048 | -8/Materials | Build established: Mutant 1404 | -8/Materials | Discovered new exit (range 14) 1472 | -8/Materials | Identified exit to Factory 1474 | -8/Materials | Entered Factory 1474 | -7/Factory | Evolved 2 slots: Propulsion x2 1643 | -7/Factory | Lost 3 parts (1p2u) 1996 | -7/Factory | Lost 4 parts (2u2w) 2729 | -7/Factory | Garrison activated, responded to threat 2836 | -7/Factory | Fabricated Plasma Cannon? 3091 | -7/Factory | Destroyed 7 combat bots 3097 | -7/Factory | Lost 3 parts (1n1u1w) 3210 | -7/Factory | Core integrity fell below 50% 3264 | -7/Factory | Lost 7 parts (2p1n3u1w) 3326 | -7/Factory | Core integrity fell below 20% 3524 | -7/Factory | First assault squad dispatched 3633 | -7/Factory | Lost 3 parts (1p2n) 4012 | -7/Factory | Discovered new exit (range 12) 4030 | -7/Factory | Entered Lower Caves 4078 | -7/Lower Caves | Learned location of 1 exit from Factory 4523 | -7/Lower Caves | Encountered a Warlord checkpoint 4532 | -7/Lower Caves | Attracted the attention of an 0b10 checkpoint 4535 | -7/Lower Caves | Destroyed by Y-54 Guardian with Gatling Laser Last Messages --------------- 04358_ Acquired 2 matter. 04368_ Acquired 5 matter. 04370_ Acquired 1 matter. 04371_ Acquired 2 matter. 04376_ Acquired 4 matter. 04384_ Slug penetrates Earth. 04408_ X3-PUV(k) breaks down the debris. 04412_ Acquired 5 matter. 04420_ Acquired 3 matter. 04422_ Acquired 4 matter. 04424_ X3-PUV(k) breaks down the debris. 04424_ Acquired 3 matter. 04426_ Acquired 4 matter. 04523_ UQ-V5F(M): "This area isn't safe." 04524_ Wheel destroyed. 04530_ L-41 Fighter Carbon-fiber Leg blasted off. 04532_ Y-54 Guardian: "INTERCEPTING UNREGISTERED DERELICT." 04532_ B-48 Gladiator Mace blasted off. 04534_ Slug penetrates Y-54 Guardian. 04535_ Wheel destroyed. Map ----- +----------------------------------------------------+ | ????????????#??????????#???###?#####?#?######?#??# | | ?###?##?????? ???? #????## #??##?###??######???# | | ? ?? ???#????? ? ??#?## #############??###?# | | ?? ????# ?? ??? ##### ### ###?#?#####? | | ? ##???#### ??#?### ## ###?####?# | | ? ### #?## ???### ### ###?? | | ?%??? ? #?##? ###?# | | ? ##? ? ??#?# #?## ##?#? | | #?#"#? ? ?###### ?##### #???? | | ## ###? %##?##### ####### #??## | | #?# #### ####### ###?? | | ###"####### """ #### ## #### ##?## | | ### ####?# """""" ### ####### ##### | | ## ###### """ """ ## ##?##?# ##### | | # ####### """ ####### ###?# | | % ######## """ """ ###### ###### | | ######### """""" ### #### ####?# | | ### ## """ ######## #####? | | ####% ### ### ####### ##### | | #### ## #### ####### ###### ###### | | ?###% #### ### ## ##?###########? | | ##### ### ## #####?##########?## | | ##### ## % #?## ########?####?##?## | | ##### ###% ##?## ###### ?###?#####?## | | %## ### ###### ###### ? #??##?? | | % ## %########@ ###### ? ? ??#?##?# | | % #?###### ###### ? ??#??? | | % ###?#### ##### ?#????? | | " ## ######## ### ? ??##?#? | | # ### ##### ### ?? ??????#??? | | ##### #/= ###? ?#????? | | # ##??# #Yb% ###?? ?????#????? | | #### ##### #### % ##?#? ?????#?????? | | ?#### # #?? ? #?????????? | | ###### # ### ##?# ?#?????????? | | ####### ##### ## ;##?####?#? ???????????? | | ###?#######?###### #???###??#??????????????? | | ?#?####?###???#?## #??????#???#????????????? | | #?#?##????#?????## #?##?#?#????#???????????? | | ?#????#?#????#???# ??#??#?#??????#?????????? | | ??###?####??##?##########??##?#??????????????????? | | ##??#??#?#???#????##?##??????????????????????????? | | ??#?#?#??????#???#???#???#??#?#?#????????????????? | | ??????????#????#????#?????##?????????????????????? | | ???????#???????????????#?????#???????????????????? | | ????????????#??????????#?????????????????????????? | | ?????#??????##?#?????????????????????????????????? | | ????#????#????????#??????????????????????????????? | | ?????????????????????????????????????????????????? | | ?????????????????????????????????????????????????? | +----------------------------------------------------+ Best States ------------- Heat Dissipation 34 Coolant Potential 65 Energy Generation 16 Energy Capacity 515 Matter Stores 300 Matter Capacity 300 Sight Range 18 Robot Scan Range 15 Terrain Scan Range 16 Terrain Scan Density 210 Armor Coverage 675 Resistance: KI 20 Evasion (%) 55 Targeting Accuracy 6 Melee Accuracy 5 Energy Filtering 30 Kinecelleration 30 Item Schematics ----------------- None Robot Schematics ------------------ None Fabricated ------------ Plasma Cannon | x2 | -7/Factory | Preloaded Alien Tech Used ----------------- None Achievements -------------- Armchair Analyst Challenges ------------ None Game ------ Seed SpikedClaymoresCleaver Manual? 0 Play Time 01:00:51 Cumulative 41.5 hours Start 2024.04.14 @ 23:16:09 End 2024.04.15 @ 00:22:35 Sessions 1 Manual Loads 0 Difficulty Rogue Special Mode None Game No. 45 Rogue 45 Adventurer 0 Explorer 0 Win Type - Total 0 Types 0/0/0/0/0/0/0/0/0 Lore% 25 Gallery% 38 Achievement% 28 Wizard Run 0 Options --------- Layout 0 ASCII 0 Keyboard 0 Movement Mouse Keybinds 0 Fullscreen 1 Font 24/Smallcaps Map View 183x50 Zoom Use 0% Tactical HUD 1 Map Filters NONE Filters NONE Steam 0 RUN: 005ea3ce-d872-481f-a373-331f87f7440f